Workbook

Sheet Projet
B2: CLIENT | J2: =(B8/E8) -> 0.3579837488
B3: Projet
B5: llllllllllllllllll
B7: Temps projet : | E7: Temps estimé :
B8: =(Taches!C10+Taches!D10) -> 0.7521180556 | E8: =E13+E21+E29+E37+E45+E53 -> 2.100983796
B10: =Taches!A2 -> Tâche 1 | D10: - | E10: Description | J10: =B13/E13 -> 0.05084722222
B12: Temps tâche : | E12: Temps estimé :
B13: =(Taches!C2+Taches!D2) -> 0.04237268519 | E13: 0.8333333333
B18: =Taches!A3 -> Tâche 2 | D18: - | E18: Description | J18: =B21/E21 -> 0.4733351543
B20: Temps tâche : | E20: Temps estimé :
B21: =(Taches!C3+Taches!D3) -> 0.501412037 | E21: 1.05931713
B26: Tâche 3 | D26: - | E26: Description | J26: =B29/E29 -> 1
B28: Temps tâche : | E28: Temps estimé :
B29: =(Taches!C4+Taches!D4) -> 0.08333333333 | E29: 0.08333333333
B34: Tâche 4 | D34: - | E34: Description | J34: =Taches!G8/Taches!G9 -> 1
B36: Temps tâche : | E36: Temps estimé :
B37: =(Taches!C5+Taches!D5) -> 0.08333333333 | E37: 0.08333333333
B42: Tâche 5 | D42: - | E42: Description | J42: =Taches!G10/Taches!G11 -> 1
B44: Temps tâche : | E44: Temps estimé :
B45: =(Taches!C6+Taches!D6) -> 0.02083333333 | E45: 0.02083333333
B50: Tâche 6 | D50: - | E50: Description | J50: =Taches!G12/Taches!G13 -> 1
B52: Temps tâche : | E52: Temps estimé :
B53: =(Taches!C7+Taches!D7) -> 0.02083333333 | E53: 0.02083333333

Sheet Taches
A1: Taches | B1: Chronos Secondes | C1: Heures | D1: T_Add | F1: Heures Décimales
A2: Tâche 1 | B2: 0 | C2: 0 | D2: ='Temps Add.'!T9 -> 0.04237268519 | F2: Tâche 1 | G2: =(Projet!ChronoT1-INT(Projet!ChronoT1))*24 -> 1.016944444
A3: Tâche 2 | B3: 0 | C3: 0 | D3: ='Temps Add.'!T14 -> 0.501412037 | G3: =(Projet!E13-INT(Projet!E13))*24 -> 20
A4: Tâche 3 | B4: 0 | C4: 0 | D4: ='Temps Add.'!T19 -> 0.08333333333 | F4: Tâche 2 | G4: =(ChronosT2-INT(ChronosT2))*24 -> 12.03388889
A5: Tâche 4 | B5: 0 | C5: 0 | D5: ='Temps Add.'!T24 -> 0.08333333333 | G5: =(Projet!E21-INT(Projet!E21))*24 -> 1.423611111
A6: Tâche 5 | B6: 0 | C6: 0 | D6: ='Temps Add.'!T29 -> 0.02083333333 | F6: Tâche 3 | G6: =(Projet!B29-INT(Projet!B29))*24 -> 2
A7: Tâche 6 | B7: 0 | C7: 0 | D7: ='Temps Add.'!T34 -> 0.02083333333 | G7: =(Projet!E29-INT(Projet!E29))*24 -> 2
F8: Tâche 4 | G8: =(Projet!B37-INT(Projet!E37))*24 -> 2
G9: =(Projet!E37-INT(Projet!E37))*24 -> 2
A10: Temps Total | B10: =SUM(B2:B7) -> 0 | C10: =SUM(C2:C7) -> 0 | D10: =SUM(D2:D7) -> 0.7521180556 | F10: Tâche 5 | G10: =(Projet!B45-INT(Projet!B45))*24 -> 0.5
G11: =(Projet!E45-INT(Projet!E45))*24 -> 0.5
F12: Tâche 6 | G12: =(Projet!B53-INT(Projet!B53))*24 -> 0.5
G13: =(Projet!E53-INT(Projet!E53))*24 -> 0.5

Sheet Temps Add.
A6: Tâche 1 - | B6: =Projet!E10 -> Description
A8: Date | T8: TOTAL
A9: Durée | B9: 00:00:00 | C9: 00:00:00 | D9: 00:00:00 | E9: 00:00:00 | F9: 00:00:00 | G9: 00:00:00 | H9: 00:00:00 | I9: 00:00:00 | J9: 00:00:00 | K9: 00:00:00 | L9: 00:00:00 | M9: 00:00:00 | N9: 00:00:00 | O9: 00:00:00 | P9: 00:00:00 | Q9: 00:00:00 | R9: 01:01:01 | T9: =SUM(B9:R9) -> 0.04237268519
A11: Tâche 2 - | B11: =Projet!E18 -> Description
A13: Date | T13: TOTAL
A14: Durée | B14: 00:00:00 | C14: 00:00:00 | D14: 00:00:00 | E14: 00:00:00 | F14: 00:00:00 | G14: 00:00:00 | H14: 00:00:00 | I14: 00:00:00 | J14: 00:00:00 | K14: 00:00:00 | L14: 00:00:00 | M14: 00:00:00 | N14: 00:00:00 | O14: 00:00:00 | P14: 00:00:00 | Q14: 10:00:00 | R14: 02:02:02 | T14: =SUM(B14:R14) -> 0.501412037
A16: Tâche 3 - | B16: =Projet!E26 -> Description
A18: Date | T18: TOTAL
A19: Durée | B19: 00:00:00 | C19: 00:00:00 | D19: 00:00:00 | E19: 00:00:00 | F19: 00:00:00 | G19: 00:00:00 | H19: 00:00:00 | I19: 00:00:00 | J19: 00:00:00 | K19: 00:00:00 | L19: 00:00:00 | M19: 00:00:00 | N19: 00:00:00 | O19: 00:00:00 | P19: 00:00:00 | Q19: 02:00:00 | R19: 00:00:00 | T19: =SUM(B19:R19) -> 0.08333333333
A21: Tâche 4 - | B21: =Projet!E34 -> Description
A23: Date | T23: TOTAL
A24: Durée | B24: 00:00:00 | C24: 00:00:00 | D24: 00:00:00 | E24: 00:00:00 | F24: 00:00:00 | G24: 00:00:00 | H24: 00:00:00 | I24: 00:00:00 | J24: 00:00:00 | K24: 00:00:00 | L24: 00:00:00 | M24: 00:00:00 | N24: 00:00:00 | O24: 00:00:00 | P24: 00:00:00 | Q24: 02:00:00 | R24: 00:00:00 | T24: =SUM(B24:R24) -> 0.08333333333
A26: Tâche 5 - | B26: =Projet!E42 -> Description
A28: Date | T28: TOTAL
A29: Durée | B29: 00:00:00 | C29: 00:00:00 | D29: 00:00:00 | E29: 00:00:00 | F29: 00:00:00 | G29: 00:00:00 | H29: 00:00:00 | I29: 00:00:00 | J29: 00:00:00 | K29: 00:00:00 | L29: 00:00:00 | M29: 00:00:00 | N29: 00:00:00 | O29: 00:00:00 | P29: 00:00:00 | Q29: 00:30:00 | R29: 00:00:00 | T29: =SUM(B29:R29) -> 0.02083333333
A31: Tâche 6 - | B31: =Projet!E50 -> Description
A33: Date | T33: TOTAL
A34: Durée | B34: 00:00:00 | C34: 00:00:00 | D34: 00:00:00 | E34: 00:00:00 | F34: 00:00:00 | G34: 00:00:00 | H34: 00:00:00 | I34: 00:00:00 | J34: 00:00:00 | K34: 00:00:00 | L34: 00:00:00 | M34: 00:00:00 | N34: 00:00:00 | O34: 00:00:00 | P34: 00:00:00 | Q34: 00:30:00 | R34: 00:00:00 | T34: =SUM(B34:R34) -> 0.02083333333

Sheet Feuil1
C3: 123456azrtyuiopqsdfghjklmwxcvbnnnAZER
C4: AZETTYUIOPQSDFGHJKLMWXCVBN
C5: 123456azrtyuiopqsdfghiopqsdfghjkklllll
C6: 123456azrtyuiopqsdfghjklmwxcvbnnnAZER
C7: 123456azrtyuiopqsdfghjklmwxcvbnnnAZER
C8: 123456azrtyuiopqsdfghjklmwxcvbnnnAZER
C9: 123456azrtyuiopqsdfghjklmwxcvbnnnAZER
C10: 123456azrtyuiopqsdfghjklmwxcvbnnnAZER
C11: 123456azrtyuiopqsdfghjklmwxcvbnnnAZER
C12: 123456azrtyuiopqsdfghjklmwxcvbnnnAZER
C20: Oui, je me suis dit qu'il y avait peut-être des "liaisons" entre le code VBA et certaines cellules et/ou formules.
C21: J'ai effectivement écrasé quelques cellules pour faire mes "tests" donc j'ai peut-être brisé le code. Je ne sais pas.
C23: Les boutons "Réinit." permettent de remettre à zéro le "Temps Tâche". C'est pour cela qu'il y a un bouton "Réinit." par tâche. Bouton pour lequel on a prévu une "sécurité" avec le pop-up qui apparait pour confirmer l'action.
C25: Petit rappel au cas où :
C26: Le projet est composé de 6 tâches.
C27: Pour chacune d'elle, il est possible de :
C28: - Modifier B10 et E10 (texte)
C29: - Renseigner E13 (temps estimé) au format heure
C30: - Lancer le timer (bouton "Démarrer")
C31: - Arrêter le timer (bouton "Arrêter")
C32: - Rajouter du temps supplémentaires (bouton "Temps additionnel" -> renvoi à Feuille "Temps Add.")
C33: - Réinitialiser le timer (bouton "Réinit.")
C34: Pour la Tâche 1, par exemple, J10 indique en pourcentage l'avancée de la tâche (temps passé) par rapport au temps estimé.
C36: B8 (Feuille Projet) = cumul. des "Temps tâche" (B13+B21+B29+B37+B45+B53)
C37: E8 (Feuille Projet) = cumul des "Temps estimé" (E13+E21+E29+E37+E45+E53)
C38: J2 (Feuille Projet) = pourcentage de l'avancée du projet (temps passé) par rapport au temps estimé.
C39: B5-J5 (Feuillet Projet) = barre de progression dynamique indexée à J2.
C41: EDIT : En reprenant votre dernier fichier pour rédiger mon rappel, je viens de m'apercevoir que la barre de progression est désormais fonctionnelle...!!
C42: Je viens de faire un test : Tâche 1 à 00:01:00 et toutes les autres tâches à 00:00:00.
C43: Démarrage du timer : les pourcentages (J10 et J2) ainsi que la barre fonctionnent.
C44: Arrêter du timer : tout s'arrête.
C45: Relance du timer : tout redémarre.
C46: Réinitialisation timer : La barre ne s'actualise pas sauf si...
C47: ...Redémarrage du timer : La barre s'actualise.
